fUST/lending_fUST_20241223
["ID","MTS","AMOUNT","RATE_DAILY","PERIOD"]
[346372137,1734918642750,-500.0,0.00013698,2]
[346372139,1734918642759,-154.582029,0.00013698,2]
[346372141,1734918642770,-500.0,0.00013698,2]
[346372143,1734918642782,-500.0,0.00013698,2]
[346372145,1734918642792,-500.0,0.00013698,2]
[346372147,1734918642802,-500.0,0.00013698,2]
[346372149,1734918642811,-500.0,0.00013698,2]
[346372151,1734918642823,-500.0,0.00013698,2]
[346372153,1734918642832,-500.0,0.00013698,2]
[346372155,1734918642842,-500.0,0.00013698,2]
[346372157,1734918642852,-500.0,0.00013698,2]
[346372159,1734918642861,-8520.61016436,0.00013698,2]
[346372353,1734918645702,-4993.25983564,0.00013698,2]
[346372354,1734918645715,-500.0,0.00013698,2]
[346372356,1734918645724,-500.0,0.00013698,2]
[346372358,1734918645734,-500.0,0.00013698,2]
[346372360,1734918645743,-500.0,0.00013698,2]
[346372361,1734918645753,-500.0,0.00013698,2]
[346372363,1734918645763,-500.0,0.00013698,2]
[346372364,1734918645776,-500.0,0.00013698,2]
[346372365,1734918645786,-500.0,0.00013698,2]
[346372366,1734918645795,-404.78068269,0.00013698,2]
[346372367,1734918645805,-500.0,0.00013698,2]
[346372369,1734918645815,-323.088046,0.00013698,2]
[346372370,1734918645825,-323.088046,0.00013698,2]
[346372371,1734918645835,-323.088046,0.00013698,2]
[346372373,1734918645845,-323.088046,0.00013698,2]
[346372374,1734918645855,-323.088046,0.00013698,2]
[346372375,1734918645865,-323.088046,0.00013698,2]
[346372376,1734918645874,-323.088046,0.00013698,2]
[346372377,1734918645884,-323.088046,0.00013698,2]
[346372378,1734918645893,-323.088046,0.00013698,2]
[346372379,1734918645903,-500.0,0.00013698,2]
[346372380,1734918645912,-323.088046,0.00013698,2]
[346372381,1734918645922,-323.088046,0.00013698,2]
[346372382,1734918645931,-323.088046,0.00013698,2]
[346372384,1734918645941,-323.088046,0.00013698,2]
[346372386,1734918645950,-323.088046,0.00013698,2]
[346372387,1734918645960,-323.088046,0.00013698,2]
[346372388,1734918645970,-323.088046,0.00013698,2]
[346372389,1734918645979,-151.0,0.00013698,2]
[346372390,1734918645988,-151.0,0.00013698,2]
[346372391,1734918645997,-500.0,0.00013698,2]
[346372392,1734918646007,-323.088046,0.00013698,2]
[346372393,1734918646016,-151.0,0.00013698,2]
[346372394,1734918646026,-151.0,0.00013698,2]
[346372395,1734918646036,-323.088056,0.00013698,2]
[346372396,1734918646045,-151.0,0.00013698,2]
[346372397,1734918646054,-151.0,0.00013698,2]
[346372398,1734918646064,-153.376293,0.00013698,2]
[346372399,1734918646073,-903.08,0.00013698,2]
[346372400,1734918646082,-500.0,0.00013698,2]
[346372401,1734918646091,-6871.07,0.00013698,2]
[346372402,1734918646101,-500.0,0.00013698,2]
[346372403,1734918646110,-384.48044029,0.00013698,2]
[346372404,1734918646120,-500.0,0.00013698,2]
[346372405,1734918646129,-202.068404,0.00013698,2]
[346372406,1734918646140,-202.068404,0.00013698,2]
[346372407,1734918646149,-202.068404,0.00013698,2]
[346372408,1734918646159,-202.068404,0.00013698,2]
[346372411,1734918646168,-202.068404,0.00013698,2]
[346372412,1734918646178,-202.068404,0.00013698,2]
[346372413,1734918646187,-202.068404,0.00013698,2]
[346372414,1734918646197,-500.0,0.00013698,2]
[346372415,1734918646207,-202.068404,0.00013698,2]
[346372416,1734918646218,-202.068404,0.00013698,2]
[346372417,1734918646228,-202.068404,0.00013698,2]
[346372418,1734918646237,-202.068404,0.00013698,2]
[346372419,1734918646246,-559.6,0.00013698,2]
[346372420,1734918646256,-202.068404,0.00013698,2]
[346372421,1734918646265,-202.068404,0.00013698,2]
[346372422,1734918646274,-151.0,0.00013698,2]
[346372423,1734918646284,-202.068404,0.00013698,2]
[346372424,1734918646293,-4497.51,0.00013698,2]
[346372425,1734918646303,-151.0,0.00013698,2]
[346372426,1734918646312,-151.0,0.00013698,2]
[346372427,1734918646323,-202.068404,0.00013698,2]
[346372428,1734918646333,-151.0,0.00013698,2]
[346372429,1734918646343,-151.0,0.00013698,2]
[346372430,1734918646354,-202.068404,0.00013698,2]
[346372431,1734918646363,-151.0,0.00013698,2]
[346372432,1734918646374,-202.068404,0.00013698,2]
[346372433,1734918646384,-151.0,0.00013698,2]
[346372434,1734918646394,-151.0,0.00013698,2]
[346372435,1734918646404,-202.068411,0.00013698,2]
[346372436,1734918646414,-151.0,0.00013698,2]
[346372437,1734918646425,-151.0,0.00013698,2]
[346372439,1734918646434,-151.0,0.00013698,2]
[346372440,1734918646445,-151.0,0.00013698,2]
[346372442,1734918646454,-151.0,0.00013698,2]
[346372444,1734918646466,-151.0,0.00013698,2]
[346372446,1734918646476,-151.0,0.00013698,2]
[346372447,1734918646485,-151.0,0.00013698,2]
[346372448,1734918646495,-151.0,0.00013698,2]
[346372449,1734918646506,-151.0,0.00013698,2]
[346372450,1734918646516,-151.0,0.00013698,2]
[346372451,1734918646525,-151.0,0.00013698,2]
[346372452,1734918646535,-151.0,0.00013698,2]
[346372453,1734918646544,-151.0,0.00013698,2]
[346372454,1734918646554,-195.907565,0.00013698,2]
[346372455,1734918646563,-243.791161,0.00013698,2]
[346372456,1734918646573,-500.0,0.00013698,2]
[346372457,1734918646582,-500.0,0.00013698,2]
[346372458,1734918646592,-617.63,0.00013698,2]
[346372459,1734918646602,-500.0,0.00013698,2]
[346372460,1734918646611,-500.0,0.00013698,2]
[346372461,1734918646620,-1184.1,0.00013698,2]
[346372462,1734918646630,-500.0,0.00013698,2]
[346372463,1734918646639,-500.0,0.00013698,2]
[346372464,1734918646649,-500.0,0.00013698,2]
[346372465,1734918646658,-500.0,0.00013698,2]
[346372466,1734918646667,-502.25290807,0.00013698,2]
[346372467,1734918646676,-646.98,0.00013698,2]
[346372468,1734918646686,-500.0,0.00013698,2]
[346372469,1734918646696,-500.0,0.00013698,2]
[346372470,1734918646705,-500.0,0.00013698,2]
[346372471,1734918646717,-1314.43,0.00013698,2]
[346372472,1734918646726,-500.0,0.00013698,2]
[346372473,1734918646735,-500.0,0.00013698,2]
[346372474,1734918646745,-717.81,0.00013698,2]
[346372475,1734918646754,-500.0,0.00013698,2]
[346372476,1734918646763,-500.0,0.00013698,2]
[346372477,1734918646777,-500.0,0.00013698,2]
[346372478,1734918646787,-500.0,0.00013698,2]
[346372479,1734918646796,-574.7,0.00013698,2]
[346372480,1734918646806,-500.0,0.00013698,2]
[346372481,1734918646816,-500.0,0.00013698,2]
[346372482,1734918646826,-500.0,0.00013698,2]
[346372483,1734918646835,-3992.84,0.00013698,2]
[346372484,1734918646846,-500.0,0.00013698,2]
[346372485,1734918646994,-500.0,0.00013698,2]
[346372486,1734918647005,-500.0,0.00013698,2]
[346372487,1734918647014,-533.96974656,0.00013698,2]
[346372488,1734918647024,-502.22188489,0.00013698,2]
[346372489,1734918647034,-501.88627619,0.00013698,2]
[346372490,1734918647043,-2342.12,0.00013698,2]
[346372491,1734918647053,-500.0,0.00013698,2]
[346372492,1734918647062,-500.0,0.00013698,2]
[346372493,1734918647072,-710.5,0.00013698,2]
[346372494,1734918647082,-1148.62,0.00013698,2]
[346372495,1734918647092,-2801.04,0.00013698,2]
[346372496,1734918647101,-684.2,0.00013698,2]
[346372497,1734918647111,-637.67,0.00013698,2]
[346372498,1734918647125,-1746.11,0.00013698,2]
[346372499,1734918647140,-885.83,0.00013698,2]
[346372500,1734918647150,-642.38,0.00013698,2]
[346372501,1734918647159,-745.28,0.00013698,2]
[346372502,1734918647169,-500.0,0.00013698,2]
[346372503,1734918647178,-501.32053205,0.00013698,2]
[346372504,1734918647187,-500.0,0.00013698,2]
[346372505,1734918647197,-500.0,0.00013698,2]
[346372506,1734918647207,-500.12636791,0.00013698,2]
[346372507,1734918647218,-500.0,0.00013698,2]
[346372508,1734918647227,-502.02779808,0.00013698,2]
[346372509,1734918647238,-500.97877869,0.00013698,2]
[346372510,1734918647248,-504.15093331,0.00013698,2]
[346372511,1734918647258,-502.64934432,0.00013698,2]
[346372512,1734918647269,-1535.06,0.00013698,2]
[346372513,1734918647279,-500.0,0.00013698,2]
[346372514,1734918647289,-505.69248297,0.00013698,2]
[346372515,1734918647298,-500.0,0.00013698,2]
[346372516,1734918647308,-504.41265722,0.00013698,2]
[346372517,1734918647318,-500.0,0.00013698,2]
[346372518,1734918647327,-500.0,0.00013698,2]
[346372519,1734918647337,-500.0,0.00013698,2]
[346372520,1734918647346,-151.0,0.00013698,2]
[346372521,1734918647356,-157.785314,0.00013698,2]
[346372522,1734918647366,-500.0,0.00013698,2]
[346372523,1734918647376,-500.0,0.00013698,2]
[346372524,1734918647386,-500.0,0.00013698,2]
[346372525,1734918647397,-500.0,0.00013698,2]
[346372526,1734918647406,-844.63,0.00013698,2]
[346372527,1734918647416,-504.64065992,0.00013698,2]
[346372528,1734918647426,-301.2062104,0.00013698,2]
[346372529,1734918647436,-500.0,0.00013698,2]
[346372530,1734918647446,-658.23,0.00013698,2]
[346372531,1734918647455,-505.90167129,0.00013698,2]
[346372532,1734918647473,-500.0,0.00013698,2]
[346372533,1734918647483,-500.0,0.00013698,2]
[346372534,1734918647494,-521.749144,0.00013699,2]
[346372535,1734918647504,-1000.0,0.00013699,2]
[346372536,1734918647513,-1000.0,0.00013699,2]
[346372537,1734918647525,-1000.0,0.00013699,2]
[346372538,1734918647535,-1000.0,0.00013699,2]
[346372539,1734918647546,-1000.0,0.00013699,2]
[346372540,1734918647556,-1000.0,0.00013699,2]
[346372541,1734918647566,-1000.0,0.00013699,2]
[346372542,1734918647576,-1000.0,0.00013699,2]
[346372543,1734918647587,-1000.0,0.00013699,2]
[346372544,1734918647597,-1034.573736,0.00013699,2]
[346372545,1734918647607,-151.0,0.00013699,2]
[346372546,1734918647617,-538.68195391,0.00013712,2]
[346372547,1734918647627,-151.87601634,0.00013872,2]
[346372548,1734918647637,-666.0,0.00013872,2]
[346372549,1734918647647,-418.87454615,0.0001389,2]
[346372550,1734918647657,-813.62811146,0.00013892,2]
[346372551,1734918647666,-420.0,0.00013959,2]
[346372552,1734918647676,-151.0,0.00013971,2]
[346372553,1734918647685,-170.52806889,0.00013971,2]
[346372554,1734918647694,-6072.37587006,0.00013972,2]
[346372555,1734918647704,-151.0,0.00013972,2]
[346372556,1734918647717,-151.0,0.00013972,2]
[346372557,1734918647727,-151.0,0.00013972,2]
[346372558,1734918647737,-151.0,0.00013972,2]
[346372559,1734918647747,-151.0,0.00013972,2]
[346372560,1734918647756,-151.0,0.00013972,2]
[346372561,1734918647766,-151.0,0.00013972,2]
[346372562,1734918647778,-151.0,0.00013972,2]
[346372563,1734918647787,-151.0,0.00013972,2]
[346372564,1734918647797,-151.0,0.00013972,2]
[346372565,1734918647806,-151.0,0.00013972,2]
[346372566,1734918647816,-151.0,0.00013972,2]
[346372567,1734918647825,-151.0,0.00013972,2]
[346372568,1734918647835,-151.0,0.00013972,2]
[346372569,1734918647845,-739.904404,0.00013972,2]
[346372570,1734918647855,-739.904404,0.00013972,2]
[346372571,1734918647865,-500.0,0.00013972,2]
[346372572,1734918647875,-151.0,0.00013972,2]
[346372573,1734918647884,-156.219638,0.00013972,2]
[346372574,1734918647894,-500.0,0.00013972,2]
[346372575,1734918647904,-500.0,0.00013972,2]
[346372576,1734918647913,-151.0,0.00013972,2]
[346372577,1734918647923,-151.0,0.00013972,2]
[346372578,1734918647932,-151.0,0.00013972,2]
[346372579,1734918647942,-151.0,0.00013972,2]
[346372580,1734918647952,-251.054414,0.00013972,2]
[346372581,1734918647963,-500.0,0.00013972,2]
[346372582,1734918647972,-729.946864,0.00013972,2]
[346372583,1734918647982,-729.946864,0.00013972,2]
[346372584,1734918647991,-729.946871,0.00013972,2]
[346372585,1734918648001,-500.0,0.00013972,2]
[346372586,1734918648010,-500.0,0.00013972,2]
[346372587,1734918648020,-500.0,0.00013972,2]
[346372588,1734918648029,-500.0,0.00013972,2]
[346372589,1734918648039,-500.0,0.00013972,2]
[346372590,1734918648048,-500.0,0.00013972,2]
[346372591,1734918648058,-500.0,0.00013972,2]
[346372592,1734918648067,-764.62,0.00013972,2]
[346372593,1734918648076,-500.0,0.00013972,2]
[346372594,1734918648086,-500.0,0.00013972,2]
[346372595,1734918648096,-500.0,0.00013972,2]
[346372596,1734918648105,-503.98119112,0.00013972,2]
[346372597,1734918648115,-500.0,0.00013972,2]
[346372598,1734918648124,-524.77147763,0.00013972,2]
[346372599,1734918648134,-500.0,0.00013972,2]
[346372600,1734918648144,-500.0,0.00013972,2]
[346372601,1734918648154,-500.0,0.00013972,2]
[346372602,1734918648164,-500.0,0.00013972,2]
[346372603,1734918648174,-500.0,0.00013972,2]
[346372604,1734918648184,-500.0,0.00013972,2]
[346372605,1734918648194,-500.0,0.00013972,2]
[346372606,1734918648204,-500.0,0.00013972,2]
[346372607,1734918648217,-500.0,0.00013972,2]
[346372608,1734918648228,-352.97688917,0.00013972,2]
[346372609,1734918648238,-520.69785262,0.00013972,2]
[346372610,1734918648248,-500.0,0.00013972,2]
[346372611,1734918648258,-500.0,0.00013972,2]
[346372612,1734918648267,-500.0,0.00013972,2]
[346372613,1734918648278,-500.0,0.00013972,2]
[346372614,1734918648288,-500.0,0.00013972,2]
[346372615,1734918648298,-500.0,0.00013972,2]
[346372616,1734918648308,-884.59,0.00013972,2]
[346372617,1734918648318,-1252.7,0.00013972,2]
[346372618,1734918648328,-503.26235958,0.00013972,2]
[346372619,1734918648337,-500.0,0.00013972,2]
[346372620,1734918648348,-500.0,0.00013972,2]
[346372621,1734918648358,-500.0,0.00013972,2]
[346372622,1734918648368,-908.36,0.00013972,2]
[346372623,1734918648377,-500.0,0.00013972,2]
[346372624,1734918648387,-500.0,0.00013972,2]
[346372625,1734918648398,-500.0,0.00013972,2]
[346372626,1734918648408,-500.0,0.00013972,2]
[346372627,1734918648418,-500.0,0.00013972,2]
[346372628,1734918648428,-500.0,0.00013972,2]
[346372629,1734918648438,-500.0,0.00013972,2]
[346372630,1734918648448,-500.0,0.00013972,2]
[346372631,1734918648458,-503.13441157,0.00013972,2]
[346372632,1734918648469,-500.0,0.00013972,2]
[346372633,1734918648479,-500.0,0.00013972,2]
[346372634,1734918648489,-500.0,0.00013972,2]
[346372635,1734918648499,-500.0,0.00013972,2]
[346372636,1734918648511,-620.0,0.00013972,2]
[346372637,1734918648521,-500.0,0.00013972,2]
[346372638,1734918648531,-515.13,0.00013972,2]
[346372639,1734918648542,-500.0,0.00013972,2]
[346372640,1734918648552,-500.0,0.00013972,2]
[346372641,1734918648561,-500.0,0.00013972,2]
[346372642,1734918648571,-500.0,0.00013972,2]
[346372643,1734918648581,-328.10450235,0.00013972,2]
[346372644,1734918648591,-500.0,0.00013972,2]
[346372645,1734918648601,-500.0,0.00013972,2]
[346372646,1734918648611,-500.0,0.00013972,2]
[346372647,1734918648621,-500.0,0.00013972,2]
[346372648,1734918648630,-652.2,0.00013972,2]
[346372649,1734918648640,-500.0,0.00013972,2]
[346372650,1734918648650,-503.7335256,0.00013972,2]
[346372651,1734918648660,-501.80677034,0.00013972,2]
[346372652,1734918648669,-500.0,0.00013972,2]
[346372653,1734918648679,-500.0,0.00013972,2]
[346372654,1734918648688,-502.35117717,0.00013972,2]
[346372655,1734918648698,-500.0,0.00013972,2]
[346372656,1734918648707,-500.0,0.00013972,2]
[346372657,1734918648718,-588.34277672,0.00013972,2]
[346372658,1734918648728,-502.43941716,0.00013972,2]
[346372659,1734918648738,-556.34306284,0.00013972,2]
[346372660,1734918648747,-500.0,0.00013972,2]
[346372661,1734918648757,-500.0,0.00013972,2]
[346372662,1734918648766,-500.0,0.00013972,2]
[346372663,1734918648778,-500.0,0.00013972,2]
[346372664,1734918648788,-500.0,0.00013972,2]
[346372665,1734918648798,-500.0,0.00013972,2]
[346372666,1734918648807,-429.25500581,0.00013972,2]
[346372667,1734918648817,-500.0,0.00013972,2]
[346372668,1734918648827,-500.0,0.00013972,2]
[346372669,1734918648836,-225.81285566,0.00013972,2]
[346372670,1734918648845,-500.0,0.00013972,2]
[346372671,1734918648858,-500.0,0.00013972,2]
[346372672,1734918648868,-500.0,0.00013972,2]
[346372673,1734918648878,-500.0,0.00013972,2]
[346372674,1734918648887,-500.0,0.00013972,2]
[346372675,1734918648897,-950.78,0.00013972,2]
[346372676,1734918648906,-5247.46,0.00013972,2]
[346372677,1734918648916,-500.0,0.00013972,2]
[346372678,1734918648925,-1801.6,0.00013972,2]
[346372679,1734918648935,-500.0,0.00013972,2]
[346372680,1734918648944,-500.0,0.00013972,2]
[346372681,1734918648953,-500.0,0.00013972,2]
[346372682,1734918648965,-966.6,0.00013972,2]
[346372683,1734918648975,-512.86748711,0.00013972,2]
[346372684,1734918648985,-500.0,0.00013972,2]
[346372685,1734918648994,-500.0,0.00013972,2]
[346372686,1734918649004,-500.0,0.00013972,2]
[346372687,1734918649013,-500.0,0.00013972,2]
[346372688,1734918649023,-1051.24,0.00013972,2]
[346372689,1734918649032,-13513.87,0.00013972,2]
[346372690,1734918649041,-500.0,0.00013972,2]
[346372691,1734918649051,-500.0,0.00013972,2]
[346372692,1734918649060,-500.0,0.00013972,2]
[346372693,1734918649069,-903.08,0.00013972,2]
[346372694,1734918649079,-500.0,0.00013972,2]
[346372695,1734918649088,-6871.07,0.00013972,2]
[346372696,1734918649097,-500.0,0.00013972,2]
[346372697,1734918649107,-500.0,0.00013972,2]
[346372698,1734918649117,-500.0,0.00013972,2]
[346372699,1734918649126,-559.6,0.00013972,2]
[346372700,1734918649136,-4497.51,0.00013972,2]
[346372701,1734918649146,-500.0,0.00013972,2]
[346372702,1734918649155,-500.0,0.00013972,2]
[346372703,1734918649166,-617.63,0.00013972,2]
[346372704,1734918649175,-628.29139523,0.00013972,2]
[346372705,1734918649185,-1184.1,0.00013972,2]
[346372706,1734918649195,-500.0,0.00013972,2]
[346372707,1734918649205,-500.0,0.00013972,2]
[346372708,1734918649216,-500.0,0.00013972,2]
[346372709,1734918649226,-500.0,0.00013972,2]
[346372710,1734918649235,-500.0,0.00013972,2]
[346372711,1734918649245,-646.98,0.00013972,2]
[346372712,1734918649256,-500.0,0.00013972,2]
[346372713,1734918649266,-500.0,0.00013972,2]
[346372714,1734918649276,-500.0,0.00013972,2]
[346372715,1734918649286,-1314.43,0.00013972,2]
[346372716,1734918649296,-500.0,0.00013972,2]
[346372717,1734918649305,-18643.08809722,0.00013972,2]
[346372718,1734918649315,-410.50550485,0.00013972,2]
[346372719,1734918649325,-717.81,0.00013972,2]
[346372720,1734918649334,-500.0,0.00013972,2]
[346372721,1734918649344,-500.0,0.00013972,2]
[346372722,1734918649354,-500.0,0.00013972,2]
[346372723,1734918649363,-500.0,0.00013972,2]
[346372724,1734918649372,-574.7,0.00013972,2]
[346372725,1734918649382,-553.89213291,0.00013972,2]
[346372726,1734918649391,-500.0,0.00013972,2]
[346372727,1734918649400,-500.0,0.00013972,2]
[346372728,1734918649410,-3992.84,0.00013972,2]
[346372729,1734918649420,-500.0,0.00013972,2]
[346372730,1734918649430,-500.0,0.00013972,2]
[346372731,1734918649439,-500.0,0.00013972,2]
[346372732,1734918649449,-2342.12,0.00013972,2]
[346372733,1734918649458,-500.0,0.00013972,2]
[346372734,1734918649468,-500.0,0.00013972,2]
[346372735,1734918649478,-710.5,0.00013972,2]
[346372736,1734918649487,-1148.62,0.00013972,2]
[346372737,1734918649496,-2801.04,0.00013972,2]
[346372738,1734918649506,-684.2,0.00013972,2]
[346372739,1734918649515,-637.67,0.00013972,2]
[346372740,1734918649524,-1746.11,0.00013972,2]
[346372741,1734918649533,-885.83,0.00013972,2]
[346372742,1734918649542,-642.38,0.00013972,2]
[346372743,1734918649552,-745.28,0.00013972,2]
[346372744,1734918649561,-225.93713334,0.00013972,2]
[346372745,1734918649570,-500.0,0.00013972,2]
[346372746,1734918649580,-500.0,0.00013972,2]
[346372747,1734918649589,-500.0,0.00013972,2]
[346372748,1734918649598,-1535.06,0.00013972,2]
[346372749,1734918649608,-500.0,0.00013972,2]
[346372750,1734918649617,-500.0,0.00013972,2]
[346372751,1734918649626,-500.0,0.00013972,2]
[346372752,1734918649635,-500.0,0.00013972,2]
[346372753,1734918649644,-630.66997627,0.00013972,2]
[346372754,1734918649653,-500.0,0.00013972,2]
[346372755,1734918649662,-344.65123193,0.00013972,2]
[346372756,1734918649671,-500.0,0.00013972,2]
[346372757,1734918649681,-500.0,0.00013972,2]
[346372758,1734918649690,-844.63,0.00013972,2]
[346372759,1734918649699,-500.0,0.00013972,2]
[346372760,1734918649708,-658.23,0.00013972,2]
[346372761,1734918649719,-500.0,0.00013972,2]
[346372762,1734918649729,-500.0,0.00013973,2]
[346372763,1734918649738,-500.0,0.00013973,2]
[346372764,1734918649747,-500.0,0.00013973,2]
[346372765,1734918649757,-500.0,0.00013973,2]
[346372766,1734918649766,-400.0,0.00013973,2]
[346372767,1734918649777,-420.0,0.00013999,2]
[346372768,1734918649787,-474.0,0.00014,4]
[346372769,1734918649797,-153.0,0.00014,2]
[346372770,1734918649806,-151.0,0.00014118,2]
[346372771,1734918649815,-160.0,0.00014168,3]
[346372772,1734918649824,-160.0,0.00014196,4]
[346372773,1734918649834,-618.0,0.000142,2]
[346372774,1734918649843,-1000.0,0.00014221,2]
[346372775,1734918649852,-160.0,0.00014225,5]
[346372776,1734918649861,-500.0,0.00014226,2]
[346372777,1734918649873,-500.0,0.00014226,2]
[346372778,1734918649882,-500.0,0.00014226,2]
[346372779,1734918649892,-574.02926145,0.00014226,2]
[346372780,1734918649901,-500.0,0.00014226,2]
[346372781,1734918649910,-328.27037836,0.00014226,2]
[346372782,1734918649920,-217.38835136,0.00014226,2]
[346372783,1734918649929,-500.0,0.00014226,2]
[346372784,1734918649939,-500.0,0.00014226,2]
[346372785,1734918649948,-504.59043511,0.00014226,2]
[346372786,1734918649957,-151.0,0.00014246,2]
[346372787,1734918649971,-151.0,0.00014246,2]
[346372788,1734918649980,-151.0,0.00014246,2]
[346372789,1734918649989,-151.0,0.00014246,2]
[346372790,1734918649999,-151.0,0.00014246,2]
[346372791,1734918650008,-151.0,0.00014246,2]
[346372792,1734918650017,-174.028011,0.00014246,2]
[346372793,1734918650027,-152.006909,0.00014246,2]
[346372794,1734918650036,-151.0,0.00014246,2]
[346372795,1734918650045,-153.269165,0.00014246,2]
[346372796,1734918650054,-151.0,0.00014246,2]
[346372797,1734918650063,-151.0,0.00014246,2]
[346372798,1734918650072,-739.904404,0.00014246,2]
[346372799,1734918650082,-739.904404,0.00014246,2]
[346372800,1734918650091,-500.0,0.00014246,2]
[346372801,1734918650100,-170.97394909,0.00014246,2]
[346372802,1734918650109,-500.0,0.00014246,2]
[346372803,1734918650119,-504.35973396,0.00014246,2]
[346372804,1734918650128,-503.33365769,0.00014246,2]
[346372805,1734918650138,-501.85447821,0.00014246,2]
[346372806,1734918650147,-500.0,0.00014246,2]
[346372807,1734918650156,-500.0,0.00014246,2]
[346372808,1734918650166,-500.0,0.00014246,2]
[346372809,1734918650175,-500.0,0.00014246,2]
[346372810,1734918650184,-500.0,0.00014246,2]
[346372811,1734918650193,-764.62,0.00014246,2]
[346372812,1734918650203,-500.0,0.00014246,2]
[346372813,1734918650215,-500.0,0.00014246,2]
[346372814,1734918650345,-500.0,0.00014246,2]
[346372815,1734918650355,-500.0,0.00014246,2]
[346372816,1734918650365,-500.0,0.00014246,2]
[346372817,1734918650374,-500.0,0.00014246,2]
[346372818,1734918650383,-500.0,0.00014246,2]
[346372819,1734918650392,-413.94939823,0.00014246,2]
[346372820,1734918650402,-500.0,0.00014246,2]
[346372821,1734918650411,-500.0,0.00014246,2]
[346372822,1734918650421,-362.35684032,0.00014246,2]
[346372823,1734918650431,-500.0,0.00014246,2]
[346372824,1734918650439,-500.0,0.00014246,2]
[346372825,1734918650449,-379.94992317,0.00014246,2]
[346372826,1734918650458,-500.0,0.00014246,2]
[346372827,1734918650469,-500.0,0.00014246,2]
[346372828,1734918650478,-266.90850749,0.00014246,2]
[346372829,1734918650488,-500.0,0.00014246,2]
[346372830,1734918650497,-500.0,0.00014246,2]
[346372831,1734918650507,-884.59,0.00014246,2]
[346372832,1734918650516,-1252.7,0.00014246,2]
[346372833,1734918650525,-500.0,0.00014246,2]
[346372834,1734918650534,-500.0,0.00014246,2]
[346372835,1734918650543,-500.0,0.00014246,2]
[346372836,1734918650552,-908.36,0.00014246,2]
[346372837,1734918650562,-500.0,0.00014246,2]
[346372838,1734918650571,-504.35734479,0.00014246,2]
[346372839,1734918650580,-500.0,0.00014246,2]
[346372840,1734918650590,-500.0,0.00014246,2]
[346372841,1734918650599,-500.0,0.00014246,2]
[346372842,1734918650609,-504.72477045,0.00014246,2]
[346372843,1734918650618,-500.0,0.00014246,2]
[346372844,1734918650627,-500.0,0.00014246,2]
[346372845,1734918650636,-500.0,0.00014246,2]
[346372846,1734918650646,-500.0,0.00014246,2]
[346372847,1734918650655,-500.0,0.00014246,2]
[346372848,1734918650664,-500.0,0.00014246,2]
[346372849,1734918650673,-620.0,0.00014246,2]
[346372850,1734918650682,-500.0,0.00014246,2]
[346372851,1734918650691,-515.13,0.00014246,2]
[346372852,1734918650701,-500.0,0.00014246,2]
[346372853,1734918650710,-500.0,0.00014246,2]
[346372854,1734918650720,-500.0,0.00014246,2]